fUSD/lending_fUSD_20260115
["ID","MTS","AMOUNT","RATE_DAILY","PERIOD"]
[402077956,1768511454396,-2454.84,0.00034663,2]
[402077957,1768511454405,-1225.2,0.00034663,2]
[402077958,1768511454414,-303.53470333,0.00034729,7]
[402077959,1768511454423,-1204.31636891,0.00034769,59]
[402077960,1768511454432,-1104.61227301,0.0003478,120]
[402077961,1768511454440,-1745.42298,0.000348,120]
[402077962,1768511454449,-1000.0,0.000348,120]
[402077963,1768511454459,-200.0,0.000349,10]
[402077964,1768511454468,-500.0,0.00034925,7]
[402077965,1768511454477,-3000.0,0.00035,30]
[402077966,1768511454486,-2500.0,0.00035,5]
[402077967,1768511454496,-1000.0,0.00035012,120]
[402077968,1768511454505,-1000.0,0.00035012,120]
[402077969,1768511454515,-1000.0,0.00035012,120]
[402077970,1768511454524,-1000.0,0.00035012,120]
[402077971,1768511454534,-5280.10347332,0.00035079,2]
[402077972,1768511454544,-847.86320749,0.00035079,2]
[402077973,1768511454553,-772.142,0.000351,2]
[402077974,1768511454562,-2000.0,0.00035345,120]
[402077975,1768511454571,-2000.0,0.00035345,120]
[402077976,1768511454580,-199.76525229,0.0003535,30]
[402077977,1768511454590,-170.50310661,0.00035516,2]
[402077978,1768511454599,-25513.80877808,0.00035516,2]
[402077979,1768511454608,-161.85770506,0.000356,30]
[402077980,1768511454618,-151.0,0.00035613,14]
[402077981,1768511454627,-300.0,0.00035615,10]
[402077982,1768511454636,-300.0,0.00035615,10]
[402077983,1768511454645,-1000.0,0.00035616,2]
[402077984,1768511454655,-16930.20790661,0.00035616,10]
[402077985,1768511454665,-1000.0,0.00035616,2]
[402077986,1768511454992,-156.652895,0.00035616,10]
[402077987,1768511455003,-154.767127,0.00035616,10]
[402077988,1768511455012,-179.263514,0.00035616,10]
[402077989,1768511455022,-160.040885,0.00035616,10]
[402077990,1768511455031,-500.0,0.00035616,10]
[402077991,1768511455042,-462.04555475,0.00035616,10]
[402077992,1768511455055,-500.0,0.00035616,10]
[402077993,1768511455064,-500.0,0.00035616,10]
[402077994,1768511455074,-500.0,0.00035616,10]
[402077995,1768511455084,-506.39647218,0.00035616,10]
[402077996,1768511455095,-504.6875203,0.00035616,10]
[402077997,1768511455105,-500.0,0.00035616,10]
[402077998,1768511455116,-500.0,0.00035616,10]
[402077999,1768511455125,-500.0,0.00035616,10]
[402078000,1768511455134,-539.10413427,0.00035616,10]
[402078001,1768511455143,-500.0,0.00035616,10]
[402078002,1768511455153,-500.0,0.00035616,10]
[402078003,1768511455161,-495.12656883,0.00035616,10]
[402078004,1768511455171,-439.69544667,0.00035616,10]
[402078005,1768511455179,-500.0,0.00035616,10]
[402078006,1768511455190,-500.0,0.00035616,10]
[402078007,1768511455199,-500.0,0.00035616,10]
[402078008,1768511455208,-500.0,0.00035616,10]
[402078009,1768511455218,-500.0,0.00035616,10]
[402078010,1768511455227,-500.0,0.00035616,10]
[402078011,1768511455237,-500.0,0.00035616,10]
[402078012,1768511455246,-500.0,0.00035616,10]
[402078013,1768511455255,-500.0,0.00035616,10]
[402078014,1768511455264,-500.0,0.00035616,10]
[402078015,1768511455273,-500.0,0.00035616,10]
[402078016,1768511455282,-500.0,0.00035616,10]
[402078017,1768511455292,-500.0,0.00035616,10]
[402078018,1768511455302,-500.0,0.00035616,10]
[402078019,1768511455311,-500.0,0.00035616,10]
[402078020,1768511455320,-500.0,0.00035616,10]
[402078021,1768511455331,-500.0,0.00035616,10]
[402078022,1768511455342,-536.16616745,0.00035616,10]
[402078023,1768511455356,-500.0,0.00035616,10]
[402078024,1768511455367,-515.91834142,0.00035616,10]
[402078025,1768511455376,-500.0,0.00035616,10]
[402078026,1768511455386,-513.82094624,0.00035616,10]
[402078027,1768511455395,-500.0,0.00035616,10]
[402078028,1768511455404,-500.0,0.00035616,10]
[402078029,1768511455414,-500.0,0.00035616,10]
[402078030,1768511455425,-510.35005117,0.00035616,10]
[402078031,1768511455435,-500.0,0.00035616,10]
[402078032,1768511455445,-500.0,0.00035616,10]
[402078033,1768511455454,-500.0,0.00035616,10]
[402078034,1768511455464,-500.0,0.00035616,10]
[402078035,1768511455474,-500.0,0.00035616,10]
[402078036,1768511455483,-204.94270215,0.00035616,10]
[402078037,1768511455493,-500.0,0.00035616,10]
[402078038,1768511455502,-489.64749692,0.00035616,10]
[402078039,1768511455512,-320.04962404,0.00035616,10]
[402078040,1768511455522,-572.58800983,0.00035616,10]
[402078041,1768511455531,-500.0,0.00035616,10]
[402078042,1768511455540,-558.18553611,0.00035616,10]
[402078043,1768511455550,-500.0,0.00035616,10]
[402078044,1768511455560,-500.0,0.00035616,10]
[402078045,1768511455570,-500.0,0.00035616,10]
[402078046,1768511455580,-500.0,0.00035616,10]
[402078047,1768511455590,-516.29860768,0.00035616,10]
[402078048,1768511455599,-500.0,0.00035616,10]
[402078049,1768511455608,-500.0,0.00035616,10]
[402078050,1768511455618,-500.0,0.00035616,10]
[402078051,1768511455627,-500.0,0.00035616,10]
[402078052,1768511455637,-561.1271012,0.00035616,10]
[402078053,1768511455646,-539.71964427,0.00035616,10]
[402078054,1768511455656,-500.0,0.00035616,10]
[402078055,1768511455666,-500.0,0.00035616,10]
[402078056,1768511455675,-423.25776221,0.00035616,10]
[402078057,1768511455685,-500.0,0.00035616,10]
[402078058,1768511455696,-500.0,0.00035616,10]
[402078059,1768511455706,-437.29101654,0.00035616,10]
[402078060,1768511455717,-1079.33,0.00035616,10]
[402078061,1768511455727,-500.0,0.00035616,10]
[402078062,1768511455736,-500.0,0.00035616,10]
[402078063,1768511455746,-500.0,0.00035616,10]
[402078064,1768511455756,-500.0,0.00035616,10]
[402078065,1768511455766,-500.0,0.00035616,10]
[402078066,1768511455775,-639.17,0.00035616,10]
[402078067,1768511455785,-565.90665302,0.00035616,10]
[402078068,1768511455795,-500.0,0.00035616,10]
[402078069,1768511455805,-317.64653468,0.00035616,10]
[402078070,1768511455815,-500.0,0.00035616,10]
[402078071,1768511455824,-500.0,0.00035616,10]
[402078072,1768511455834,-500.0,0.00035616,10]
[402078073,1768511455844,-500.0,0.00035616,10]
[402078074,1768511455854,-500.0,0.00035616,10]
[402078075,1768511455863,-500.0,0.00035616,10]
[402078076,1768511455873,-500.0,0.00035616,10]
[402078077,1768511455883,-500.0,0.00035616,10]
[402078078,1768511455893,-500.0,0.00035616,10]
[402078079,1768511455902,-542.51007756,0.00035616,10]
[402078080,1768511455916,-773.66,0.00035616,10]
[402078081,1768511455926,-500.0,0.00035616,10]
[402078082,1768511455936,-500.0,0.00035616,10]
[402078083,1768511455946,-368.97830616,0.00035616,10]
[402078084,1768511455956,-500.0,0.00035616,10]
[402078085,1768511455967,-500.0,0.00035616,10]
[402078086,1768511455977,-909.09,0.00035616,10]
[402078087,1768511455987,-500.0,0.00035616,10]
[402078088,1768511455996,-236.44396484,0.00035616,10]
[402078089,1768511456006,-500.0,0.00035616,10]
[402078090,1768511456016,-406.13346072,0.00035616,10]
[402078091,1768511456026,-346.96319822,0.00035616,10]
[402078092,1768511456036,-500.0,0.00035616,10]
[402078093,1768511456047,-687.71,0.00035616,10]
[402078094,1768511456057,-500.0,0.00035616,5]
[402078095,1768511456067,-500.0,0.00035616,10]
[402078096,1768511456076,-500.0,0.00035616,10]
[402078097,1768511456086,-500.0,0.00035616,10]
[402078098,1768511456096,-500.0,0.00035616,10]
[402078099,1768511456105,-500.0,0.00035616,10]
[402078100,1768511456115,-500.0,0.00035616,10]
[402078101,1768511456126,-500.0,0.00035616,10]
[402078102,1768511456135,-295.85474167,0.00035616,10]
[402078103,1768511456145,-524.79476592,0.00035616,10]
[402078104,1768511456155,-1389.34,0.00035616,10]
[402078105,1768511456165,-441.62250161,0.00035616,10]
[402078106,1768511456174,-500.0,0.00035616,10]
[402078107,1768511456184,-500.0,0.00035616,10]
[402078108,1768511456194,-500.0,0.00035616,10]
[402078109,1768511456204,-500.0,0.00035616,10]
[402078110,1768511456214,-500.0,0.00035616,10]
[402078111,1768511456224,-500.0,0.00035616,10]
[402078112,1768511456234,-500.0,0.00035616,10]
[402078113,1768511456243,-627.89454247,0.00035616,10]
[402078114,1768511456253,-500.0,0.00035616,10]
[402078115,1768511456263,-209.27772348,0.00035616,10]
[402078116,1768511456273,-387.82346427,0.00035616,10]
[402078117,1768511456283,-501.95909064,0.00035616,10]
[402078118,1768511456297,-500.0,0.00035616,10]
[402078119,1768511456307,-500.0,0.00035616,10]
[402078120,1768511456317,-500.0,0.00035616,10]
[402078121,1768511456328,-201.04782403,0.00035616,10]
[402078122,1768511456338,-500.0,0.00035616,10]
[402078123,1768511456348,-417.34777652,0.00035616,10]
[402078124,1768511456358,-500.0,0.00035616,10]
[402078125,1768511456368,-500.0,0.00035616,10]
[402078126,1768511456379,-500.0,0.00035616,10]
[402078127,1768511456388,-763.64,0.00035616,10]
[402078128,1768511456398,-500.0,0.00035616,10]
[402078129,1768511456409,-500.0,0.00035616,10]
[402078130,1768511456418,-500.0,0.00035616,10]
[402078131,1768511456428,-894.31,0.00035616,10]
[402078132,1768511456439,-500.0,0.00035616,10]
[402078133,1768511456449,-500.0,0.00035616,10]
[402078134,1768511456459,-500.0,0.00035616,10]
[402078135,1768511456470,-500.0,0.00035616,10]
[402078136,1768511456480,-661.4,0.00035616,10]
[402078137,1768511456491,-500.0,0.00035616,10]
[402078138,1768511456500,-500.0,0.00035616,10]
[402078139,1768511456511,-2122.59,0.00035616,10]
[402078140,1768511456520,-500.0,0.00035616,10]
[402078141,1768511456530,-500.0,0.00035616,10]
[402078142,1768511456541,-824.19,0.00035616,10]
[402078143,1768511456550,-500.0,0.00035616,10]
[402078144,1768511456561,-712.69,0.00035616,10]
[402078145,1768511456572,-500.0,0.00035616,10]
[402078146,1768511456582,-500.0,0.00035616,10]
[402078147,1768511456591,-500.0,0.00035616,10]
[402078148,1768511456601,-500.0,0.00035616,10]
[402078149,1768511456611,-514.11586589,0.00035616,10]
[402078150,1768511456621,-500.0,0.00035616,10]
[402078151,1768511456631,-500.0,0.00035616,10]
[402078152,1768511456641,-500.0,0.00035616,10]
[402078153,1768511456651,-361.27386541,0.00035616,10]
[402078154,1768511456721,-144.33682876,0.00035616,10]
[402078155,1768511456731,-500.0,0.00035616,10]
[402078156,1768511456741,-500.0,0.00035616,10]
[402078157,1768511456752,-500.0,0.00035616,10]
[402078158,1768511456761,-774.41,0.00035616,10]
[402078159,1768511456771,-329.6795373,0.00035616,10]
[402078160,1768511456781,-500.0,0.00035616,10]
[402078161,1768511456791,-500.0,0.00035616,10]
[402078162,1768511456801,-500.0,0.00035616,10]
[402078163,1768511456810,-500.0,0.00035616,10]
[402078164,1768511456820,-500.0,0.00035616,10]
[402078165,1768511456830,-374.27361908,0.00035616,10]
[402078166,1768511456840,-574.03733088,0.00035616,10]
[402078167,1768511456850,-500.0,0.00035616,10]
[402078168,1768511456859,-674.9,0.00035616,10]
[402078169,1768511456869,-500.0,0.00035616,7]
[402078170,1768511456880,-500.0,0.00035616,10]
[402078171,1768511456890,-500.0,0.00035616,10]
[402078172,1768511456900,-500.0,0.00035616,10]
[402078173,1768511456910,-500.0,0.00035616,10]
[402078174,1768511456919,-500.0,0.00035616,10]
[402078175,1768511456929,-500.0,0.00035616,10]
[402078176,1768511456939,-500.0,0.00035616,10]
[402078177,1768511456949,-500.0,0.00035616,10]
[402078178,1768511456959,-500.0,0.00035616,10]
[402078179,1768511456968,-765.98,0.00035616,10]
[402078180,1768511456978,-519.91305416,0.00035616,10]
[402078181,1768511456988,-569.61711677,0.00035616,10]
[402078182,1768511456998,-500.0,0.00035616,10]
[402078183,1768511457008,-500.0,0.00035616,10]
[402078184,1768511457019,-500.0,0.00035616,10]
[402078185,1768511457029,-945.33,0.00035616,10]
[402078186,1768511457039,-270.34918973,0.00035616,10]
[402078187,1768511457058,-500.0,0.00035616,10]
[402078188,1768511457073,-1167.26,0.00035616,10]
[402078189,1768511457083,-761.18,0.00035616,10]
[402078190,1768511457093,-229.78995542,0.00035616,10]
[402078191,1768511457103,-500.0,0.00035616,10]
[402078192,1768511457112,-649.36,0.00035616,10]
[402078193,1768511457123,-1967.69,0.00035616,10]
[402078194,1768511457133,-766.51,0.00035616,10]
[402078195,1768511457143,-500.0,0.00035616,10]
[402078196,1768511457152,-1174.97,0.00035616,10]
[402078197,1768511457162,-500.0,0.00035616,10]
[402078198,1768511457172,-500.0,0.00035616,10]
[402078199,1768511457181,-583.05836082,0.00035616,10]
[402078200,1768511457191,-500.0,0.00035616,10]
[402078201,1768511457201,-500.0,0.00035616,10]
[402078202,1768511457211,-500.0,0.00035616,10]
[402078203,1768511457221,-646.63188879,0.00035616,10]
[402078204,1768511457231,-500.0,0.00035616,10]
[402078205,1768511457242,-500.0,0.00035616,10]
[402078206,1768511457251,-932.87,0.00035616,10]
[402078207,1768511457261,-663.82,0.00035616,10]
[402078208,1768511457271,-1125.36,0.00035616,10]
[402078209,1768511457281,-381.42649336,0.00035616,10]
[402078210,1768511457291,-500.0,0.00035616,10]
[402078211,1768511457302,-500.0,0.00035616,10]
[402078212,1768511457312,-500.0,0.00035616,10]
[402078213,1768511457322,-1573.76,0.00035616,10]
[402078214,1768511457332,-721.42,0.00035616,10]
[402078215,1768511457342,-500.0,0.00035616,10]
[402078216,1768511457351,-500.0,0.00035616,10]
[402078217,1768511457360,-500.0,0.00035616,10]
[402078218,1768511457370,-1444.31,0.00035616,10]
[402078219,1768511457379,-500.0,0.00035616,10]
[402078220,1768511457390,-164.0030524,0.00035616,10]
[402078221,1768511457399,-633.94,0.00035616,10]
[402078222,1768511457409,-500.0,0.00035616,10]
[402078223,1768511457418,-624.82,0.00035616,10]
[402078224,1768511457427,-493.89604236,0.00035616,10]
[402078225,1768511457438,-500.0,0.00035616,10]
[402078226,1768511457447,-500.0,0.00035616,10]
[402078227,1768511457459,-500.0,0.00035616,10]
[402078228,1768511457470,-500.0,0.00035616,10]
[402078229,1768511457479,-500.0,0.00035616,10]
[402078230,1768511457490,-635.33,0.00035616,10]
[402078231,1768511457500,-500.0,0.00035616,10]
[402078232,1768511457510,-500.0,0.00035616,10]
[402078233,1768511457520,-500.0,0.00035616,10]
[402078234,1768511457530,-500.0,0.00035616,10]
[402078235,1768511457540,-500.0,0.00035616,10]
[402078236,1768511457550,-836.5,0.00035616,10]
[402078237,1768511457559,-500.0,0.00035616,10]
[402078238,1768511457568,-500.0,0.00035616,10]
[402078239,1768511457578,-360.96089705,0.00035616,10]
[402078240,1768511457587,-500.0,0.00035616,10]
[402078241,1768511457597,-562.22,0.00035616,10]
[402078242,1768511457606,-500.0,0.00035616,10]
[402078243,1768511457616,-1943.12,0.00035616,10]
[402078244,1768511457626,-500.0,0.00035616,10]
[402078245,1768511457636,-500.0,0.00035616,10]
[402078246,1768511457645,-500.0,0.00035616,10]
[402078247,1768511457655,-548.36,0.00035616,10]
[402078248,1768511457664,-500.0,0.00035616,10]
[402078249,1768511457674,-739.65,0.00035616,10]
[402078250,1768511457683,-1071.83,0.00035616,10]
[402078251,1768511457693,-872.98,0.00035616,10]
[402078252,1768511457703,-1520.32,0.00035616,10]
[402078253,1768511457712,-500.0,0.00035616,10]
[402078254,1768511457723,-500.0,0.00035616,10]
[402078255,1768511457732,-500.0,0.00035616,10]
[402078256,1768511457742,-605.43,0.00035616,10]
[402078257,1768511457752,-500.0,0.00035616,10]
[402078258,1768511457762,-500.0,0.00035616,10]
[402078259,1768511457771,-1790.2,0.00035616,10]
[402078260,1768511457781,-500.0,0.00035616,10]
[402078261,1768511457791,-500.0,0.00035616,10]
[402078262,1768511457800,-500.0,0.00035616,10]
[402078263,1768511457810,-500.0,0.00035616,10]
[402078264,1768511457820,-500.0,0.00035616,10]
[402078265,1768511457834,-745.05,0.00035616,10]
[402078266,1768511457843,-500.0,0.00035616,10]
[402078267,1768511457854,-786.29,0.00035616,10]
[402078268,1768511457864,-902.69,0.00035616,10]
[402078269,1768511457874,-870.64,0.00035616,10]
[402078270,1768511457884,-582.97723595,0.00035616,10]
[402078271,1768511457894,-2126.99,0.00035616,10]
[402078272,1768511457903,-828.47,0.00035616,10]
[402078273,1768511457913,-500.0,0.00035616,10]
[402078274,1768511457922,-500.0,0.00035616,10]
[402078275,1768511457931,-500.0,0.00035616,10]
[402078276,1768511457941,-500.0,0.00035616,10]
[402078277,1768511457951,-756.55,0.00035616,10]
[402078278,1768511457960,-821.39,0.00035616,10]
[402078279,1768511457970,-500.0,0.00035616,10]
[402078280,1768511457979,-554.33,0.00035616,10]
[402078281,1768511457989,-500.0,0.00035616,10]
[402078282,1768511457999,-500.0,0.00035616,10]
[402078283,1768511458008,-500.0,0.00035616,10]
[402078284,1768511458020,-500.0,0.00035616,10]
[402078285,1768511458030,-500.0,0.00035616,10]
[402078286,1768511458040,-500.0,0.00035616,10]
[402078287,1768511458052,-500.0,0.00035616,10]
[402078288,1768511458062,-500.0,0.00035616,10]
[402078289,1768511458072,-691.79,0.00035616,10]
[402078290,1768511458082,-500.0,0.00035616,10]
[402078291,1768511458092,-500.0,0.00035616,10]
[402078292,1768511458103,-500.0,0.00035616,10]
[402078293,1768511458113,-407.81051867,0.00035616,10]
[402078294,1768511458123,-500.0,0.00035616,10]
[402078295,1768511458382,-500.0,0.00035616,10]
[402078296,1768511458392,-500.0,0.00035616,10]
[402078297,1768511458401,-560.91,0.00035616,10]
[402078298,1768511458411,-778.23,0.00035616,10]
[402078299,1768511458420,-807.23,0.00035616,10]
[402078300,1768511458430,-500.0,0.00035616,10]
[402078301,1768511458440,-500.0,0.00035616,10]
[402078302,1768511458449,-500.0,0.00035616,10]
[402078303,1768511458459,-500.0,0.00035616,10]
[402078304,1768511458469,-500.0,0.00035616,10]
[402078305,1768511458478,-500.0,0.00035616,10]
[402078306,1768511458487,-583.23779985,0.00035616,10]
[402078307,1768511458497,-500.0,0.00035616,10]
[402078308,1768511458506,-1254.38,0.00035616,10]
[402078309,1768511458515,-500.0,0.00035616,10]
[402078310,1768511458525,-179.58102831,0.00035616,10]
[402078311,1768511458535,-500.0,0.00035616,10]
[402078312,1768511458544,-1458.14,0.00035616,10]
[402078313,1768511458554,-289.59022809,0.00035616,10]
[402078314,1768511458565,-500.0,0.00035616,10]
[402078315,1768511458575,-500.0,0.00035616,10]
[402078316,1768511458584,-1236.99,0.00035616,10]
[402078317,1768511458594,-500.0,0.00035616,10]
[402078318,1768511458604,-500.0,0.00035616,10]
[402078319,1768511458613,-500.0,0.00035616,10]
[402078320,1768511458623,-500.0,0.00035616,10]
[402078321,1768511458632,-500.0,0.00035616,10]
[402078322,1768511458642,-1089.38,0.00035616,10]
[402078323,1768511458651,-1008.26,0.00035616,10]
[402078324,1768511458661,-500.0,0.00035616,10]
[402078325,1768511458670,-500.0,0.00035616,10]
[402078326,1768511458681,-500.0,0.00035616,10]
[402078327,1768511458690,-500.0,0.00035616,10]
[402078328,1768511458700,-500.0,0.00035616,10]
[402078329,1768511458710,-1134.6,0.00035616,10]
[402078330,1768511458719,-838.08,0.00035616,10]
[402078331,1768511458728,-500.0,0.00035616,10]
[402078332,1768511458738,-747.18,0.00035616,10]
[402078333,1768511458747,-500.0,0.00035616,10]
[402078334,1768511458757,-500.0,0.00035616,10]
[402078335,1768511458767,-500.0,0.00035616,10]
[402078336,1768511458776,-613.63,0.00035616,10]
[402078337,1768511458785,-525.99,0.00035616,10]
[402078338,1768511458794,-500.0,0.00035616,10]
[402078339,1768511458804,-500.0,0.00035616,10]
[402078340,1768511458814,-500.0,0.00035616,10]
[402078341,1768511458823,-500.0,0.00035616,10]
[402078342,1768511458833,-500.0,0.00035616,10]
[402078343,1768511458843,-500.0,0.00035616,10]
[402078344,1768511458853,-1528.88,0.00035616,10]
[402078345,1768511458862,-500.0,0.00035616,10]
[402078346,1768511458872,-575.51400176,0.00035616,10]
[402078347,1768511458882,-500.0,0.00035616,10]
[402078348,1768511458891,-500.0,0.00035616,10]
[402078349,1768511458900,-557.6508657,0.00035616,10]
[402078350,1768511458910,-523.41,0.00035616,10]
[402078351,1768511458919,-1396.49,0.00035616,10]
[402078352,1768511458929,-561.97,0.00035616,10]
[402078353,1768511458938,-432.02779773,0.00035616,10]
[402078354,1768511458947,-906.16,0.00035616,10]
[402078355,1768511458956,-500.0,0.00035616,10]
[402078356,1768511458965,-500.0,0.00035616,10]
[402078357,1768511458975,-500.0,0.00035616,10]
[402078358,1768511458984,-500.0,0.00035616,10]
[402078359,1768511458993,-500.0,0.00035616,10]
[402078360,1768511459002,-500.0,0.00035616,10]
[402078361,1768511459011,-500.0,0.00035616,10]
[402078362,1768511459021,-842.83,0.00035616,10]
[402078363,1768511459030,-500.0,0.00035616,10]
[402078364,1768511459038,-500.0,0.00035616,10]
[402078365,1768511459050,-685.86,0.00035616,10]
[402078366,1768511459059,-500.0,0.00035616,10]
[402078367,1768511459068,-500.0,0.00035616,10]
[402078368,1768511459077,-500.0,0.00035616,10]
[402078369,1768511459086,-500.0,0.00035616,10]
[402078370,1768511459095,-777.22,0.00035616,10]
[402078371,1768511459105,-557.70568462,0.00035616,10]
[402078372,1768511459114,-590.04448875,0.00035616,10]
[402078373,1768511459125,-500.0,0.00035616,10]
[402078374,1768511459135,-714.01,0.00035616,10]
[402078375,1768511459144,-500.0,0.00035616,10]
[402078376,1768511459154,-1686.42,0.00035616,10]
[402078377,1768511459162,-500.0,0.00035616,10]
[402078378,1768511459172,-983.42,0.00035616,10]
[402078379,1768511459181,-602.06772385,0.00035616,10]
[402078380,1768511459190,-500.0,0.00035616,10]
[402078381,1768511459201,-500.0,0.00035616,10]
[402078382,1768511459210,-500.0,0.00035616,10]
[402078383,1768511459219,-1058.84,0.00035616,10]
[402078384,1768511459229,-500.0,0.00035616,10]
[402078385,1768511459238,-628.93081393,0.00035616,10]
[402078386,1768511459247,-500.0,0.00035616,10]
[402078387,1768511459256,-526.06,0.00035616,10]
[402078388,1768511459264,-500.0,0.00035616,10]
[402078389,1768511459273,-500.0,0.00035616,10]
[402078390,1768511459282,-513.53478115,0.00035616,10]
[402078391,1768511459291,-500.0,0.00035616,10]
[402078392,1768511459300,-714.98,0.00035616,10]
[402078393,1768511459309,-699.5,0.00035616,10]
[402078394,1768511459317,-500.0,0.00035616,10]
[402078395,1768511459326,-500.0,0.00035616,10]
[402078396,1768511459335,-500.0,0.00035616,10]
[402078397,1768511459343,-500.0,0.00035616,10]
[402078398,1768511459352,-500.0,0.00035616,10]
[402078399,1768511459361,-500.0,0.00035616,10]
[402078400,1768511459371,-500.0,0.00035616,10]
[402078401,1768511459379,-500.0,0.00035616,10]
[402078402,1768511459388,-500.0,0.00035616,10]
[402078403,1768511459397,-1945.0,0.00035616,10]
[402078404,1768511459405,-500.0,0.00035616,10]
[402078405,1768511459414,-500.0,0.00035616,10]
[402078406,1768511459423,-682.28,0.00035616,10]
[402078407,1768511459432,-506.49,0.00035616,10]
[402078408,1768511459441,-500.0,0.00035616,10]
[402078409,1768511459450,-500.0,0.00035616,10]
[402078410,1768511459459,-556.54630995,0.00035616,10]
[402078411,1768511459468,-1235.93,0.00035616,10]
[402078412,1768511459478,-500.0,0.00035616,10]
[402078413,1768511459487,-581.6609062,0.00035616,10]
[402078414,1768511459496,-500.0,0.00035616,10]
[402078415,1768511459505,-500.0,0.00035616,10]
[402078416,1768511459515,-1376.26,0.00035616,10]
[402078417,1768511459524,-500.0,0.00035616,10]
[402078418,1768511459533,-986.87,0.00035616,10]
[402078419,1768511459542,-500.0,0.00035616,10]
[402078420,1768511459552,-979.13,0.00035616,10]
[402078421,1768511459561,-500.0,0.00035616,10]
[402078422,1768511459571,-500.0,0.00035616,10]
[402078423,1768511459580,-500.0,0.00035616,10]
[402078424,1768511459589,-500.0,0.00035616,10]
[402078425,1768511459599,-500.0,0.00035616,10]
[402078426,1768511459608,-500.0,0.00035616,10]
[402078427,1768511459617,-1877.79,0.00035616,10]
[402078428,1768511459627,-652.08,0.00035616,10]
[402078429,1768511459636,-478.55798295,0.00035616,10]
[402078430,1768511459645,-507.03,0.00035616,10]
[402078431,1768511459655,-500.0,0.00035616,10]
[402078432,1768511459664,-500.0,0.00035616,10]
[402078433,1768511459673,-500.0,0.00035616,10]
[402078434,1768511459683,-500.0,0.00035616,10]
[402078435,1768511459692,-500.0,0.00035616,10]
[402078436,1768511459701,-500.0,0.00035616,10]
[402078437,1768511459711,-500.0,0.00035616,10]
[402078438,1768511459721,-1085.9,0.00035616,10]
[402078439,1768511459730,-500.0,0.00035616,10]
[402078440,1768511459739,-607.42,0.00035616,10]
[402078441,1768511459748,-505.87048034,0.00035616,10]
[402078442,1768511459758,-500.0,0.00035616,10]
[402078443,1768511459767,-500.0,0.00035616,10]
[402078444,1768511459775,-794.19,0.00035616,10]
[402078445,1768511459785,-500.0,0.00035616,10]
[402078446,1768511459794,-500.0,0.00035616,10]
[402078447,1768511459803,-551.11,0.00035616,10]
[402078448,1768511459812,-500.0,0.00035616,10]
[402078449,1768511459822,-656.9,0.00035616,10]
[402078450,1768511459831,-500.0,0.00035616,10]
[402078451,1768511459841,-500.0,0.00035616,10]
[402078452,1768511459851,-508.07865048,0.00035616,10]
[402078453,1768511459863,-500.0,0.00035616,10]
[402078454,1768511459874,-500.0,0.00035616,10]
[402078455,1768511459886,-500.0,0.00035616,10]